lending/lending_fUSD_20260104
["ID","MTS","AMOUNT","RATE_DAILY","PERIOD"]
[400390535,1767496271519,151.0,0.00030368,2]
[400390536,1767496287697,151.0,0.00030368,2]
[400390537,1767496304346,151.0,0.0003039,2]
[400390538,1767496321390,151.0,0.00030138,2]
[400390539,1767496337796,151.0,0.00030586,2]
[400390540,1767496354009,151.0,0.00031014,2]
[400390541,1767496355519,-659.951,0.00035444,42]
[400390542,1767496355779,-154.7,0.00035444,42]
[400390543,1767496360545,-167.6331,0.00036093,2]
[400390544,1767496360572,-9832.3669,0.00036093,2]
[400390545,1767496363048,-10000.0,0.00036093,2]
[400390546,1767496363788,-8517.426,0.00036093,2]
[400390547,1767496363814,-1482.574,0.00036093,2]
[400390548,1767496364638,-1017.426,0.00036093,2]
[400390549,1767496364664,-8982.574,0.00036121,2]
[400390550,1767496365647,-6064.2961983,0.00036121,2]
[400390551,1767496365673,-500.0,0.00036192,7]
[400390552,1767496365704,-500.0,0.00036192,7]
[400390553,1767496365729,-500.0,0.00036192,7]
[400390554,1767496365757,-339.70093407,0.00036192,7]
[400390555,1767496365790,-2096.00286763,0.00036193,2]
[400390556,1767496366623,-10000.0,0.00036193,2]
[400390557,1767496367444,-10000.0,0.00036193,2]
[400390558,1767496368167,-500.0,0.00036192,15]
[400390559,1767496368194,-500.0,0.00036192,15]
[400390560,1767496368219,-350.0,0.00036192,15]
[400390561,1767496368243,-500.0,0.00036192,15]
[400390562,1767496368271,-350.0,0.00036192,15]
[400390563,1767496368295,-500.0,0.00036192,15]
[400390564,1767496368323,-7300.0,0.00036193,2]
[400390565,1767496368891,-10000.0,0.00036193,2]
[400390566,1767496369582,-10000.0,0.00036193,2]
[400390567,1767496370446,151.0,0.00031559,2]
[400390568,1767496386877,151.0,0.00031407,2]
[400390569,1767496403369,151.0,0.0003125,2]
[400390570,1767496419750,151.0,0.00031374,2]
[400390571,1767496422053,409.3837,0.00032956,2]
[400390572,1767496435993,151.0,0.00031374,2]
[400390573,1767496443070,8020.9653,0.00035993,2]
[400390574,1767496446904,168.4,0.00028595,2]
[400390575,1767496447181,270.0,0.0003137,6]
[400390576,1767496450030,270.0,0.0003412,20]
[400390577,1767496537177,207.0,0.000328,120]
[400390578,1767496580545,150.0,0.00032,120]
[400390579,1767496614117,151.0,0.0003149,2]
[400390580,1767496630516,151.0,0.00031527,2]
[400390581,1767496646744,151.0,0.00031527,2]
[400390582,1767496659108,153.1617565,0.00043223,120]
[400390583,1767496663144,151.0,0.00031527,2]
[400390584,1767496679587,151.0,0.00031471,2]
[400390585,1767496696520,151.0,0.00031417,2]
[400390586,1767496728612,151.0,0.00032208,2]
[400390587,1767496745017,151.0,0.00032062,2]
[400390588,1767496758301,10000.0,0.00043223,60]
[400390592,1767496761590,151.0,0.00032387,2]
[400390594,1767496761930,10000.0,0.00043223,60]
[400390597,1767496778006,151.0,0.00032554,2]
[400390598,1767496794184,151.0,0.00032432,2]
[400390599,1767496810587,151.0,0.00032557,2]
[400390600,1767496827209,151.0,0.00032557,2]
[400390601,1767496844170,151.0,0.00032557,2]
[400390602,1767496860558,151.0,0.00032584,2]
[400390603,1767496974095,151.0,0.00032466,2]
[400390604,1767496990504,151.0,0.00032468,2]
[400390605,1767497087185,151.0,0.00032491,2]
[400390606,1767497103589,151.0,0.00032517,2]
[400390607,1767497108229,5914.6,0.00018,2]
[400390608,1767497108260,9849.0,0.00018,2]
[400390609,1767497108290,10000.0,0.00018,2]
[400390610,1767497108320,927.07879268,0.00018,2]
[400390611,1767497108354,10000.0,0.00018,2]
[400390612,1767497108384,10000.0,0.00018,2]
[400390613,1767497108412,10000.0,0.00018,2]
[400390614,1767497108441,10000.0,0.00018,2]
[400390615,1767497108470,34356.77708745,0.00018,2]
[400390616,1767497129467,13993.04769493,0.00016,2]
[400390619,1767497175867,1966.63477104,0.000209,30]
[400390620,1767497197895,7408.8556376,0.00043223,60]
[400390621,1767497198106,7662.23787914,0.00025,2]
[400390622,1767497201128,-151.0,0.00031976,2]
[400390623,1767497201152,-151.0,0.00032429,2]
[400390624,1767497201173,-893.5,0.00035248,2]
[400390625,1767497201196,-300.0,0.00035363,120]
[400390626,1767497201218,-228.49147285,0.00035379,2]
[400390627,1767497201241,-300.0,0.00035466,120]
[400390628,1767497201264,-339.91224863,0.00035466,120]
[400390629,1767497201287,-400.0,0.00035479,3]
[400390630,1767497201310,-300.0,0.00035479,3]
[400390631,1767497201334,-1200.0,0.00035479,3]
[400390632,1767497201359,-388.45567692,0.00035479,2]
[400390633,1767497201381,-71.38087833,0.0003548,2]
[400390634,1767497207334,62080.31876536,0.00043223,60]
[400390635,1767497213362,5000.00788168,0.000162,5]
[400390642,1767497313066,1000.0,0.00023,14]
[400390643,1767497316814,194.51362514,0.00043223,120]
[400390644,1767497373104,-250.0,0.00032478,2]
[400390645,1767497373140,-151.0,0.00032495,2]
[400390646,1767497373168,-151.0,0.00032497,2]
[400390647,1767497373190,-1528.19,0.00035156,120]
[400390648,1767497373211,-10322.06912167,0.0003548,2]
[400390649,1767497373232,-2323.50085714,0.00035644,2]
[400390664,1767497431912,-151.0,0.00032502,2]
[400390666,1767497431924,-151.0,0.00032504,2]
[400390668,1767497431935,-151.0,0.00032536,2]
[400390670,1767497431946,-151.0,0.00032563,2]
[400390671,1767497431957,-2676.49914286,0.00035644,2]
[400390672,1767497431968,-250.0,0.00035662,2]
[400390673,1767497431979,-250.0,0.00035726,2]
[400390674,1767497431989,-250.0,0.0003579,2]
[400390675,1767497432000,-999.0,0.0003579,3]
[400390676,1767497432015,-3190.0652,0.00035893,2]
[400390677,1767497432026,-1427.2746,0.00035893,2]
[400390678,1767497432037,-2253.45270447,0.00035893,2]
[400390679,1767497432048,-2717.03966436,0.00035893,2]
[400390680,1767497432059,-285.90646506,0.00035983,3]
[400390681,1767497432070,-150.0,0.00035991,2]
[400390682,1767497432080,-500.0,0.00035992,15]
[400390683,1767497432091,-384.44062074,0.00035992,15]
[400390684,1767497432102,-150.0,0.00035992,15]
[400390685,1767497432112,-150.0,0.00035992,15]
[400390686,1767497432123,-500.0,0.00035992,15]
[400390687,1767497432135,-500.0,0.00035992,15]
[400390688,1767497432146,-500.0,0.00035992,15]
[400390689,1767497432157,-500.0,0.00035992,15]
[400390690,1767497432168,-500.0,0.00035992,15]
[400390691,1767497432179,-500.0,0.00035992,15]
[400390692,1767497432190,-500.0,0.00035992,15]
[400390693,1767497432200,-500.0,0.00035992,15]
[400390694,1767497432211,-500.0,0.00035992,15]
[400390695,1767497432222,-500.0,0.00035992,15]
[400390696,1767497432232,-500.0,0.00035992,15]
[400390697,1767497432244,-500.0,0.00035992,15]
[400390698,1767497432254,-500.0,0.00035992,15]
[400390699,1767497432265,-500.0,0.00035992,15]
[400390700,1767497432275,-536.66232619,0.00035992,15]
[400390701,1767497432286,-500.0,0.00035992,15]
[400390702,1767497432297,-500.0,0.00035992,15]
[400390703,1767497432308,-500.0,0.00035992,15]
[400390704,1767497432318,-500.0,0.00035992,15]
[400390705,1767497432329,-500.0,0.00035992,15]
[400390706,1767497432340,-500.0,0.00035992,15]
[400390707,1767497432355,-300.0,0.00035992,15]
[400390708,1767497432367,-500.0,0.00035992,15]
[400390709,1767497432378,-500.0,0.00035992,15]
[400390710,1767497432389,-301.30906113,0.00035992,15]
[400390711,1767497432402,-198.69093887,0.00035992,15]
[400390712,1767497432414,-500.0,0.00035992,15]
[400390713,1767497432425,-500.0,0.00035992,15]
[400390714,1767497432435,-500.0,0.00035992,15]
[400390715,1767497432446,-500.0,0.00035992,15]
[400390716,1767497432458,-500.0,0.00035992,15]
[400390717,1767497432469,-274.69980002,0.00035992,15]
[400390718,1767497432482,-225.30019998,0.00035992,15]
[400390719,1767497432493,-500.0,0.00035992,15]
[400390720,1767497432503,-259.91292916,0.00035992,15]
[400390721,1767497432515,-240.08707084,0.00035992,15]
[400390722,1767497432526,-500.0,0.00035992,15]
[400390723,1767497432536,-500.0,0.00035992,15]
[400390724,1767497432546,-500.0,0.00035992,15]
[400390725,1767497432556,-500.0,0.00035992,15]
[400390726,1767497432566,-500.0,0.00035992,15]
[400390727,1767497432576,-500.0,0.00035992,15]
[400390728,1767497432586,-500.0,0.00035992,15]
[400390729,1767497432596,-500.0,0.00035992,15]
[400390730,1767497432607,-500.0,0.00035992,15]
[400390731,1767497432618,-287.25089594,0.00035992,15]
[400390732,1767497432630,-500.0,0.00035992,15]
[400390733,1767497432641,-500.0,0.00035992,15]
[400390734,1767497432652,-500.0,0.00035992,15]
[400390735,1767497432663,-500.0,0.00035992,15]
[400390736,1767497432674,-500.0,0.00035992,15]
[400390737,1767497432684,-574.73784557,0.00035992,15]
[400390738,1767497432695,-500.0,0.00035992,15]
[400390739,1767497432710,-500.0,0.00035992,15]
[400390741,1767497432721,-500.0,0.00035992,15]
[400390742,1767497432732,-500.0,0.00035992,15]
[400390743,1767497432743,-500.0,0.00035992,15]
[400390744,1767497432755,-500.0,0.00035992,15]
[400390745,1767497432767,-500.0,0.00035992,15]
[400390746,1767497432777,-500.0,0.00035992,15]
[400390747,1767497432788,-500.0,0.00035992,15]
[400390748,1767497432799,-500.0,0.00035992,15]
[400390749,1767497432809,-500.0,0.00035992,15]
[400390750,1767497432819,-500.0,0.00035992,15]
[400390751,1767497432831,-500.0,0.00035992,15]
[400390752,1767497432842,-47.71699306,0.00035992,15]
[400390753,1767497432855,-452.28300694,0.00035992,15]
[400390754,1767497432866,-4.23699306,0.00035992,15]
[400390755,1767497432878,-495.76300694,0.00035992,15]
[400390756,1767497432889,-725.07,0.00035992,14]
[400390757,1767497432904,-527.961,0.00035992,43]
[400390758,1767497432915,-154.701,0.00035992,43]
[400390759,1767497432926,-1814.64500296,0.00035993,2]
[400390761,1767497438027,-700.79866321,0.00035993,2]
[400390762,1767497438040,-3346.28808209,0.00035993,2]
[400390763,1767497438052,-11313.26447207,0.00035993,2]
[400390764,1767497438165,-27573.02821683,0.00035993,2]
[400390765,1767497438179,-4077.57874292,0.00035993,2]
[400390799,1767497439988,-964.32799411,0.00035993,2]
[400390800,1767497440003,-469.58830507,0.00035993,2]
[400390806,1767497444356,-20390.13886185,0.00035993,2]
[400390807,1767497444568,-676.94003078,0.00035993,2]
[400390808,1767497444584,-716.99396338,0.00035993,2]
[400390809,1767497444718,-2473.07117054,0.00035993,2]
[400390814,1767497445910,-359.3261279,0.00035993,2]
[400390815,1767497446017,-4353.73831783,0.00035993,2]
[400390816,1767497446075,-4730.67228041,0.00035993,2]
[400390817,1767497446130,-3000.0,0.00035993,2]
[400390827,1767497548588,233.5740798,0.00043223,120]
[400390834,1767497583515,300.0,0.00030665,120]
[400390835,1767497607677,11337.75423918,0.0003,2]
[400390836,1767497697229,1421.9,0.00029,2]
[400390837,1767497727860,499.818833,0.0002891,2]
[400390838,1767497750252,314.17,0.0001747,2]
[400390839,1767497750443,314.17,0.0001839,2]
[400390840,1767497750650,314.17,0.00019309,2]
[400390841,1767497750865,314.17,0.00020229,2]
[400390842,1767497751067,314.17,0.00021148,2]
[400390843,1767497751255,314.17,0.00022068,2]
[400390844,1767497751527,314.17,0.00022987,2]
[400390845,1767497751728,314.17,0.00023907,2]
[400390846,1767497751937,314.17,0.00024826,2]
[400390847,1767497752134,314.17,0.00025746,2]
[400390848,1767497752563,314.17,0.00026665,2]
[400390849,1767497752785,314.17,0.00027585,2]
[400390850,1767497752979,314.17,0.00028504,2]
[400390851,1767497785340,151.0,0.00028142,2]
[400390852,1767497785580,151.0,0.00028142,2]
[400390854,1767497883096,2454.58943116,0.00032366,120]
[400390855,1767497884280,300.0,0.00032366,120]
[400390856,1767497885520,195.0,0.00032366,120]
[400390857,1767497939033,151.0,0.00026664,2]
[400390858,1767497943699,151.0,0.00026664,2]
[400390859,1767497944023,151.0,0.00026664,2]
[400390860,1767497960534,151.0,0.00026715,2]
[400390861,1767497976962,151.0,0.00026715,2]
[400390862,1767497993140,151.0,0.00026691,2]
[400390863,1767498009526,151.0,0.00027174,2]
[400390864,1767498043042,159.76641,0.00043223,65]
[400390865,1767498043334,159.76641,0.00043223,65]
[400390866,1767498043639,159.76641,0.00043223,65]
[400390867,1767498043951,159.76641,0.00043223,65]
[400390868,1767498044250,159.76641,0.00043223,65]
[400390869,1767498044629,159.76641,0.00043223,65]
[400390870,1767498044817,159.76641,0.00043223,65]
[400390871,1767498045131,159.76641,0.00043223,65]
[400390872,1767498045466,159.76641,0.00043223,65]
[400390873,1767498045760,159.76641,0.00043223,65]
[400390874,1767498046056,159.76641,0.00043223,65]
[400390875,1767498046342,159.76641,0.00043223,65]
[400390876,1767498046662,159.76641,0.00043223,65]
[400390877,1767498046955,159.76641,0.00043223,65]
[400390878,1767498047385,159.76641,0.00043223,65]
[400390879,1767498047698,159.76641,0.00043223,65]
[400390880,1767498047973,159.76641,0.00043223,65]
[400390881,1767498048266,159.76641,0.00043223,65]
[400390882,1767498048563,159.76641,0.00043223,65]
[400390883,1767498048850,159.766407,0.00043223,65]
[400390884,1767498138169,203.35,0.00026597,2]
[400390885,1767498164220,276.26,0.00013699,2]
[400390886,1767498164423,276.26,0.00020187,2]
[400390887,1767498164609,276.26,0.00026676,2]
[400390889,1767498440357,-314.17,0.00029424,2]
[400390890,1767498440384,-233.61591145,0.00029424,2]
[400390891,1767498440405,-300.0,0.00029424,2]
[400390892,1767498440427,-250.0,0.00029424,2]
[400390893,1767498440448,-445.0,0.00029424,2]
[400390894,1767498440468,-250.0,0.00029582,2]
[400390895,1767498440490,-300.0,0.00029999,2]
[400390896,1767498440511,-264.83051759,0.00029999,2]
[400390898,1767498545127,-935.16948241,0.00029999,2]
[400390899,1767498545149,-250.0,0.00029999,2]
[400390900,1767498545172,-5246.14274759,0.0003,2]
[400390901,1767498559095,-561.64523215,0.0003,2]
[400390902,1767498559163,-5353.435416,0.0003,2]
[400390903,1767498572096,-816.77089032,0.0003,2]
[400390904,1767498572117,-8.10702194,0.00030343,2]
[400390905,1767498632073,-286.98,0.00030343,2]
[400390906,1767498632101,-19.08297806,0.00030343,2]
[400390907,1767498632111,-250.0,0.00030441,2]
[400390908,1767498632121,-725.79878435,0.00030603,2]
[400390909,1767498632133,-832.22856812,0.00030603,2]
[400390910,1767498632255,-619.35433313,0.00030603,2]
[400390911,1767498632268,-660.5183144,0.00030603,2]
[400390912,1767498632279,-314.17,0.00031262,2]
[400390913,1767498632288,-416.0,0.00032082,2]
[400390914,1767498632299,-314.17,0.00032182,2]
[400390915,1767498632309,-300.0,0.00032366,2]
[400390916,1767498632319,-166.66,0.00032554,30]
[400390917,1767498632330,-1600.0,0.00032663,3]
[400390918,1767498632341,-258.088604,0.00032664,2]
[400390919,1767498632351,-250.0,0.00032999,2]
[400390920,1767498632361,-250.0,0.00032999,2]
[400390921,1767498632371,-67.82216573,0.00033,2]
[400390922,1767498632384,-87.47820026,0.00033,2]
[400390923,1767498632393,-165.16269671,0.00033033,2]
[400390924,1767498632403,-314.17,0.00033101,2]
[400390925,1767498632412,-276.26,0.00033165,2]
[400390926,1767498632422,-300.0,0.00033239,3]
[400390927,1767498632431,-300.0,0.00033239,2]
[400390928,1767498632441,-166.66,0.0003324,30]
[400390929,1767498632451,-150.0,0.00033321,2]
[400390930,1767498632462,-495.26222895,0.00033366,20]
[400390931,1767498632474,-4.73777105,0.00033366,20]
[400390932,1767498632484,-200.0,0.00033447,2]
[400390933,1767498632493,-286.7,0.00033467,30]
[400390934,1767498632503,-26.08810839,0.00033585,2]
[400390935,1767498632515,-173.91189161,0.00033585,2]
[400390936,1767498632525,-457.67,0.00033765,2]
[400390937,1767498632535,-166.66,0.00033925,30]
[400390938,1767498632544,-1582.89072638,0.00033968,2]
[400390939,1767498632556,-700.03063581,0.00033968,2]
[400390941,1767498638119,-761.04863781,0.00033968,2]
[400390942,1767498638130,-40.95136219,0.00034021,2]
[400390943,1767498638144,-273.21863781,0.00034021,2]
[400390944,1767498638154,-602.0742831,0.00034192,2]
[400390945,1767498638166,-102.9257169,0.00034192,2]
[400390946,1767498638178,-150.0,0.0003437,2]
[400390947,1767498638188,-135.90128546,0.0003461,30]
[400390948,1767498638200,-30.75871454,0.0003461,30]
[400390949,1767498638210,-150.99,0.00034649,30]
[400390950,1767498638220,-199.52950771,0.00034649,2]
[400390951,1767498638233,-4707.47864378,0.00034649,2]
[400390952,1767498638244,-916.99125405,0.00034649,2]
[400390953,1767498638279,-4175.99059446,0.00034649,2]
[400390954,1767498638291,-340.7948031,0.00034649,30]
[400390955,1767498638303,-1510.0,0.00034649,30]
[400390956,1767498638317,-378.17299764,0.00034649,30]
[400390957,1767498638330,-364.04984042,0.00034649,30]
[400390958,1767498638343,-1462.29235884,0.00034649,30]
[400390959,1767498638353,-150.99,0.00034649,2]
[400390960,1767498638363,-62.31455073,0.00034649,2]
[400390961,1767498638375,-9029.21082737,0.00034649,2]
[400390962,1767498638388,-908.4646219,0.00034649,2]
[400390964,1767498638398,-999.99,0.00034649,2]
[400390966,1767498638408,-180.25,0.00034649,20]
[400390968,1767498638417,-314.17,0.0003494,2]
[400390970,1767498638428,-979.73,0.00035113,2]
[400390972,1767498638437,-3914.59337836,0.00035191,2]
[400391065,1767498640130,-890.978,0.00035191,2]
[400391066,1767498640290,-529.56039524,0.00035191,2]
[400391067,1767498640301,-194.16713849,0.00035251,3]
[400391068,1767498640344,-1085.83286151,0.00035251,3]
[400391069,1767498640354,-166.66,0.00035296,30]
[400391070,1767498640363,-1421.34134663,0.000353,7]
[400391071,1767498640375,-648.08713694,0.000353,7]
[400391072,1767498640386,-154.7015669,0.00035443,42]
[400391073,1767498640398,-422.369,0.00035443,42]
[400391074,1767498640407,-158.6993085,0.00035616,38]
[400391075,1767498640417,-1000.0,0.00035693,2]
[400391076,1767498640427,-2500.0,0.00035693,2]
[400391077,1767498640436,-256.97152716,0.00035693,2]
[400391078,1767498640446,-634.44,0.00035717,14]
[400391079,1767498640456,-500.0,0.00035718,15]
[400391080,1767498640465,-500.0,0.00035718,15]
[400391081,1767498640476,-90.36838061,0.00035718,15]
[400391082,1767498640488,-409.63161939,0.00035718,15]
[400391083,1767498640498,-500.0,0.00035718,15]
[400391084,1767498640508,-500.0,0.00035718,15]
[400391085,1767498640517,-500.0,0.00035718,15]
[400391086,1767498640527,-141.14722686,0.00035718,15]
[400391087,1767498640539,-206.95875089,0.00035718,15]
[400391088,1767498640549,-486.83548283,0.00035718,15]
[400391090,1767498640561,-13.16451717,0.00035718,15]
[400391091,1767498640571,-500.0,0.00035718,15]
[400391093,1767498640581,-610.15044273,0.00035718,15]
[400391094,1767498640591,-500.0,0.00035718,15]
[400391095,1767498640600,-500.0,0.00035718,15]
[400391096,1767498640611,-345.70250012,0.00035718,15]
[400391097,1767498640623,-154.29749988,0.00035718,15]
[400391098,1767498640633,-500.0,0.00035718,15]
[400391099,1767498640643,-158.36977058,0.00035719,2]
[400391100,1767498640655,-912.87,0.00035719,2]
[400391101,1767498640667,-956.86766338,0.00035719,2]
[400391102,1767498640676,-278.52234062,0.00035881,2]
[400391110,1767498643912,-320.11558038,0.00035881,2]
[400391111,1767498644765,-1846.69777687,0.00035881,2]
[400391112,1767498644775,-166.66,0.00035981,30]
[400391113,1767498644784,-330.32892169,0.00035991,14]
[400391114,1767498644796,-304.11107831,0.00035991,14]
[400391115,1767498644805,-742.79650876,0.00035993,2]
[400391116,1767498644815,-509.17786425,0.00035993,2]
[400391117,1767498644824,-2027.15622693,0.00035993,2]
[400391118,1767498644836,-3874.955011,0.00035993,2]
[400391119,1767498644847,-1233.02197146,0.00035993,2]
[400391129,1767498646247,-795.83875658,0.00035993,2]
[400391130,1767498646259,-2023.53659554,0.00035993,2]
[400391131,1767498646312,-3170.02509798,0.00035993,2]
[400391152,1767498784043,300000.0,0.00043223,120]
[400391153,1767498790223,303.00651477,0.00030876,120]
[400391154,1767498793779,300000.0,0.00043223,120]
[400391155,1767498803789,300000.0,0.00043223,120]
[400391156,1767498813760,300000.0,0.00043223,120]
[400391157,1767498823763,272000.0,0.00043223,120]
[400391158,1767498984833,1983.016813,0.000328,120]
[400391159,1767499003821,300000.0,0.00043223,120]
[400391160,1767499013742,200000.0,0.00043223,120]
[400391161,1767499022878,300.0,0.00032445,120]
[400391162,1767499024516,300.0,0.00032445,120]
[400391163,1767499024567,330.90558882,0.00031003,120]
[400391164,1767499082689,468.30990851,0.00032478,120]
[400391165,1767499103037,-151.0,0.00029292,2]
[400391166,1767499103064,-151.0,0.00029292,2]
[400391167,1767499220829,151.0,0.00028871,2]
[400391168,1767499221089,151.0,0.00028871,2]
[400391169,1767499233993,-248.38054765,0.00032445,2]
[400391170,1767499236947,151.0,0.00028871,2]
[400391171,1767499238171,151.0,0.00028871,2]
[400391172,1767499253432,151.0,0.00028871,2]
[400391173,1767499269860,151.0,0.00028871,2]
[400391174,1767499286916,151.0,0.00028977,2]
[400391175,1767499406548,361.94235483,0.00043229,120]
[400391176,1767499535755,151.0,0.00043229,65]
[400391177,1767499536061,151.0,0.00043229,65]
[400391178,1767499536350,151.0,0.00043229,65]
[400391179,1767499536652,285.074946,0.00043229,65]
[400391180,1767499537844,182.900872,0.00043229,65]
[400391181,1767499551034,-500.0,0.00032445,2]
[400391182,1767499551055,-500.0,0.00032445,2]
[400391183,1767499551076,-500.0,0.00032445,2]
[400391184,1767499551104,-492.0,0.00032445,2]
[400391185,1767499551125,-3521.0,0.000335,60]
[400391186,1767499551147,-384.0,0.0003427,3]
[400391187,1767499551168,-400.0,0.0003427,3]
[400391188,1767499551190,-3372.0,0.00034271,120]
[400391189,1767499551211,-896.31,0.00034739,2]
[400391190,1767499551232,-1000.0,0.00035057,2]
[400391191,1767499551252,-999.0,0.0003507,3]
[400391192,1767499551275,-3372.0,0.00035166,120]
[400391193,1767499551295,-316.86,0.00035166,2]
[400391194,1767499551316,-6118.42,0.00035166,2]
[400391195,1767499551338,-743.16,0.00035166,2]
[400391196,1767499551359,-299.99,0.00035166,30]
[400391197,1767499551381,-3372.0,0.00035319,2]
[400391198,1767499551406,-3372.0,0.00035494,2]
[400391199,1767499551431,-3372.0,0.00035577,2]
[400391200,1767499551452,-2560.17,0.00035617,2]
[400391201,1767499551474,-776.6986,0.00035617,2]
[400391202,1767499551500,-2294.87224793,0.00035654,2]
[400391203,1767499551523,-3372.0,0.00035667,7]
[400391204,1767499551544,-158.889,0.00035667,42]
[400391205,1767499551571,-564.41,0.00035667,42]
[400391206,1767499551602,-300.0,0.00035689,120]
[400391207,1767499551625,-233.85598455,0.00035689,2]
[400391208,1767499551645,-251.61945235,0.00035689,2]
[400391209,1767499551666,-600.0,0.00035689,120]
[400391210,1767499551688,-250.0,0.00035689,2]
[400391211,1767499551708,-1000.0,0.00035693,2]
[400391212,1767499551728,-154.72784194,0.00035714,14]
[400391213,1767499551749,-300.0,0.00035716,2]
[400391214,1767499551776,-269.10843452,0.00035716,15]
[400391215,1767499551811,-500.0,0.00035716,15]
[400391216,1767499551836,-223.1171604,0.00035716,15]
[400391217,1767499551857,-188.37590416,0.00035716,15]
[400391218,1767499551878,-181849.068607,0.00035717,2]
[400391219,1767499551899,-43487.2780971,0.00035718,2]
[400391220,1767499551919,-203.246612,0.00035719,2]
[400391221,1767499551942,-168.0,0.00035754,2]
[400391222,1767499551967,-220.26130902,0.00035793,2]
[400391223,1767499551988,-1877.88181622,0.00035793,2]
[400391224,1767499552009,-197.59482883,0.00035793,2]
[400391225,1767499552031,-168.0,0.00035854,7]
[400391226,1767499552052,-940.57750992,0.00035883,3]
[400391227,1767499552072,-556.0,0.00035893,5]
[400391228,1767499552097,-466803.50659406,0.00035893,2]
[400391229,1767499552263,221.0,0.00043229,120]
[400391230,1767499575980,-1000.0,0.00035617,2]
[400391231,1767499576007,-533196.49340594,0.00035893,2]
[400391232,1767499576028,-158.47981608,0.00035893,2]
[400391233,1767499576053,-168.0,0.00035905,7]
[400391234,1767499576076,-168.0,0.00035929,2]
[400391235,1767499576098,-3226.0935906,0.00035993,2]
[400391236,1767499576118,-153.20395192,0.00036033,2]
[400391237,1767499576140,-168.0,0.00036058,2]
[400391238,1767499576162,-168.0,0.00036091,2]
[400391239,1767499576184,-168.0,0.0003614,2]
[400391240,1767499576204,-166.88796,0.00036193,75]
[400391241,1767499576225,-166.88797,0.00036193,75]
[400391242,1767499576245,-166.88796,0.00036193,75]
[400391243,1767499576267,-166.88796,0.00036193,75]
[400391244,1767499576288,-166.88797,0.00036193,75]
[400391245,1767499576310,-168.0,0.0003624,2]
[400391246,1767499576333,-168.0,0.00036241,120]
[400391247,1767499576354,-3372.0,0.00036245,7]
[400391248,1767499576377,-168.0,0.00036305,7]
[400391249,1767499576400,-571.672,0.00036327,2]
[400391250,1767499576422,-913.0,0.00036327,2]
[400391251,1767499576444,-1200.0,0.00036327,2]
[400391252,1767499576470,-8357.08935836,0.00036332,2]
[400391253,1767499576492,-510.914429,0.00036392,2]
[400391254,1767499576514,-500.0,0.00036392,30]
[400391255,1767499576536,-510.32127282,0.00036392,30]
[400391256,1767499576558,-500.0,0.00036392,120]
[400391257,1767499576580,-511.41685725,0.00036392,120]
[400391258,1767499576602,-500.0,0.00036392,7]
[400391259,1767499576623,-501.08142461,0.00036392,7]
[400391260,1767499576646,-500.0,0.00036392,45]
[400391261,1767499576669,-500.0,0.00036392,45]
[400391262,1767499576691,-500.0,0.00036392,45]
[400391263,1767499576712,-500.0,0.00036392,45]